[Event "*** Titled Tuesday Blitz"]
[Site "Chess.com"]
[Date "2020.12.01"]
[Round "4"]
[White "Teidi96"]
[Black "scoopbh"]
[Result "1/2-1/2"]
[WhiteElo "2267"]
[BlackElo "2070"]
[TimeControl "180+1"]
[EndTime "10:37:42 PST"]
[Termination "Game drawn by repetition"]

1. e4 {[%clk 0:03:00.9]} 1... c5 {[%clk 0:02:57.9]} 2. Nf3 {[%clk 0:03:01.4]}
2... Nc6 {[%clk 0:02:57.8]} 3. d4 {[%clk 0:03:01.7]} 3... cxd4 {[%clk
0:02:57.4]} 4. Nxd4 {[%clk 0:03:02.6]} 4... Nf6 {[%clk 0:02:54.4]} 5. Nc3 {[%clk
0:03:02.9]} 5... e5 {[%clk 0:02:54.7]} 6. Ndb5 {[%clk 0:03:03.2]} 6... d6 {[%clk
0:02:51]} 7. Bg5 {[%clk 0:03:03.6]} 7... a6 {[%clk 0:02:50.1]} 8. Na3 {[%clk
0:03:03.8]} 8... b5 {[%clk 0:02:49.5]} 9. Nd5 {[%clk 0:03:04]} 9... Be7 {[%clk
0:02:49.4]} 10. Bxf6 {[%clk 0:03:04.4]} 10... Bxf6 {[%clk 0:02:49.1]} 11. c4
{[%clk 0:03:05.3]} 11... b4 {[%clk 0:02:18.1]} 12. Nc2 {[%clk 0:03:05.7]} 12...
a5 {[%clk 0:02:13.2]} 13. g3 {[%clk 0:03:05.9]} 13... g6 {[%clk 0:02:07.6]} 14.
Bg2 {[%clk 0:03:06.3]} 14... Bg7 {[%clk 0:02:02.9]} 15. O-O {[%clk 0:03:06.5]}
15... O-O {[%clk 0:02:02.4]} 16. Qd3 {[%clk 0:03:06.5]} 16... Be6 {[%clk
0:02:01]} 17. h4 {[%clk 0:03:06.6]} 17... h5 {[%clk 0:02:00]} 18. Kh2 {[%clk
0:03:06.7]} 18... Ne7 {[%clk 0:01:57.7]} 19. Nce3 {[%clk 0:03:05]} 19... Nc6
{[%clk 0:01:51.3]} 20. Nc2 {[%clk 0:03:04.9]} 20... Ne7 {[%clk 0:01:49.6]} 21.
Nxe7+ {[%clk 0:03:05.4]} 21... Qxe7 {[%clk 0:01:49.6]} 22. Bh3 {[%clk
0:03:05.9]} 22... Rac8 {[%clk 0:01:46.6]} 23. b3 {[%clk 0:03:04.8]} 23... f5
{[%clk 0:01:37.8]} 24. Ne3 {[%clk 0:03:03.4]} 24... Rc5 {[%clk 0:01:18.4]} 25.
Rad1 {[%clk 0:03:02.3]} 25... f4 {[%clk 0:01:12.8]} 26. Bxe6+ {[%clk 0:03:01.4]}
26... Qxe6 {[%clk 0:01:12.6]} 27. Nd5 {[%clk 0:03:00.4]} 27... Qg4 {[%clk
0:00:52.6]} 28. Ne7+ {[%clk 0:02:42.4]} 28... Kh7 {[%clk 0:00:48.1]} 29. Qxd6
{[%clk 0:02:43.3]} 29... fxg3+ {[%clk 0:00:20.2]} 30. fxg3 {[%clk 0:02:44.2]}
30... Qe2+ {[%clk 0:00:16.6]} 31. Kg1 {[%clk 0:02:34.5]} 31... Qe3+ {[%clk
0:00:12.9]} 32. Kg2 {[%clk 0:02:05.2]} 32... Qe2+ {[%clk 0:00:12.2]} 33. Kg1
{[%clk 0:01:53.1]} 33... Qe3+ {[%clk 0:00:12]} 34. Kh1 {[%clk 0:01:53.7]} 34...
Qxe4+ {[%clk 0:00:11]} 35. Kh2 {[%clk 0:01:47.6]} 35... Qe2+ {[%clk 0:00:11]}
36. Kh3 {[%clk 0:01:38.5]} 36... Qg4+ {[%clk 0:00:10.4]} 37. Kg2 {[%clk
0:01:30.7]} 37... Qe2+ {[%clk 0:00:10.4]} 38. Kg1 {[%clk 0:01:31.3]} 38... Qe3+
{[%clk 0:00:10.2]} 39. Kh1 {[%clk 0:01:23.4]} 39... Qe4+ {[%clk 0:00:10.4]} 40.
Kh2 {[%clk 0:01:20.2]} 40... Qe2+ {[%clk 0:00:10.3]} 41. Kg1 {[%clk 0:01:20.7]}
41... Qe3+ {[%clk 0:00:10.3]} 42. Kh1 {[%clk 0:01:16.6]} 42... Qe4+ {[%clk
0:00:10.3]} 1/2-1/2

[Event "*** Titled Tuesday Blitz"]
[Site "Chess.com"]
[Date "2020.12.01"]
[Round "4"]
[White "Everyfishknows"]
[Black "Mambastik-Fantastic"]
[Result "0-1"]
[WhiteElo "2463"]
[BlackElo "2320"]
[TimeControl "180+1"]
[EndTime "10:37:45 PST"]
[Termination "Mambastik-Fantastic won on time"]

1. d4 {[%clk 0:03:00.9]} 1... Nf6 {[%clk 0:02:59.6]} 2. c4 {[%clk 0:02:56.7]}
2... g6 {[%clk 0:02:58.2]} 3. Nc3 {[%clk 0:02:56.6]} 3... Bg7 {[%clk 0:02:57.7]}
4. e4 {[%clk 0:02:55.7]} 4... d6 {[%clk 0:02:57.2]} 5. Nf3 {[%clk 0:02:55.4]}
5... O-O {[%clk 0:02:56.8]} 6. Be2 {[%clk 0:02:55.9]} 6... Nbd7 {[%clk
0:02:56.8]} 7. O-O {[%clk 0:02:56]} 7... e5 {[%clk 0:02:57.1]} 8. Be3 {[%clk
0:02:55.3]} 8... c6 {[%clk 0:02:55.3]} 9. d5 {[%clk 0:02:49.1]} 9... c5 {[%clk
0:02:48.6]} 10. Ne1 {[%clk 0:02:48.3]} 10... Ne8 {[%clk 0:02:46.5]} 11. Nd3
{[%clk 0:02:48]} 11... a6 {[%clk 0:02:45.5]} 12. a3 {[%clk 0:02:47.9]} 12... f5
{[%clk 0:02:45.1]} 13. f3 {[%clk 0:02:48]} 13... f4 {[%clk 0:02:44.9]} 14. Bf2
{[%clk 0:02:48.5]} 14... g5 {[%clk 0:02:44.6]} 15. b4 {[%clk 0:02:48.5]} 15...
b6 {[%clk 0:02:43.4]} 16. Qa4 {[%clk 0:02:38.8]} 16... Rf7 {[%clk 0:02:41.6]}
17. Rab1 {[%clk 0:02:33.7]} 17... h5 {[%clk 0:02:34.4]} 18. Qc6 {[%clk
0:02:19.6]} 18... Ra7 {[%clk 0:02:30.4]} 19. bxc5 {[%clk 0:02:19.4]} 19... bxc5
{[%clk 0:02:28.1]} 20. Na4 {[%clk 0:01:55.6]} 20... Bf8 {[%clk 0:02:26.9]} 21.
Nb6 {[%clk 0:01:14.1]} 21... Nxb6 {[%clk 0:02:24.7]} 22. Qxb6 {[%clk 0:01:13.8]}
22... Rac7 {[%clk 0:02:05.3]} 23. Qb2 {[%clk 0:00:58.3]} 23... Rg7 {[%clk
0:02:04]} 24. Rbd1 {[%clk 0:00:54.8]} 24... Qf6 {[%clk 0:01:59.3]} 25. Kh1
{[%clk 0:00:46]} 25... Rb7 {[%clk 0:01:58.1]} 26. Qc3 {[%clk 0:00:45.3]} 26...
g4 {[%clk 0:01:54.9]} 27. g3 {[%clk 0:00:41.8]} 27... fxg3 {[%clk 0:01:48.3]}
28. Bxg3 {[%clk 0:00:37.4]} 28... h4 {[%clk 0:01:47.4]} 29. fxg4 {[%clk
0:00:30.5]} 29... Qg5 {[%clk 0:01:40.1]} 30. Be1 {[%clk 0:00:19.3]} 30... Nf6
{[%clk 0:01:29.4]} 31. Bd2 {[%clk 0:00:18.9]} 31... Nxe4 {[%clk 0:01:24.5]} 32.
Qc2 {[%clk 0:00:09.8]} 32... Qg6 {[%clk 0:01:12.6]} 33. Bf3 {[%clk 0:00:05.4]}
33... Bxg4 {[%clk 0:01:00.4]} 34. Bg2 {[%clk 0:00:05.6]} 34... h3 {[%clk
0:00:57.9]} 0-1

[Event "*** Titled Tuesday Blitz"]
[Site "Chess.com"]
[Date "2020.12.01"]
[Round "4"]
[White "Chernobay_Artem"]
[Black "Brave_spirit12"]
[Result "0-1"]
[WhiteElo "2671"]
[BlackElo "2493"]
[TimeControl "180+1"]
[EndTime "10:37:46 PST"]
[Termination "Brave_spirit12 won by resignation"]

1. d4 {[%clk 0:03:00.9]} 1... Nf6 {[%clk 0:02:59.4]} 2. c4 {[%clk 0:03:01.3]}
2... e6 {[%clk 0:02:59.2]} 3. Nf3 {[%clk 0:03:01.4]} 3... d5 {[%clk 0:02:56.3]}
4. g3 {[%clk 0:03:01.2]} 4... Be7 {[%clk 0:02:55]} 5. Bg2 {[%clk 0:03:00.9]}
5... O-O {[%clk 0:02:53.7]} 6. O-O {[%clk 0:03:01.4]} 6... c6 {[%clk 0:02:51.3]}
7. Qc2 {[%clk 0:02:59.2]} 7... Ne4 {[%clk 0:02:48.7]} 8. Bf4 {[%clk 0:02:31.4]}
8... Na6 {[%clk 0:02:44.9]} 9. Nbd2 {[%clk 0:02:25.3]} 9... f5 {[%clk 0:02:43]}
10. a3 {[%clk 0:02:11.2]} 10... Bf6 {[%clk 0:02:40]} 11. Be5 {[%clk 0:02:07.9]}
11... Bd7 {[%clk 0:02:34.1]} 12. b4 {[%clk 0:01:57.4]} 12... b5 {[%clk
0:02:27.7]} 13. cxb5 {[%clk 0:01:40.4]} 13... cxb5 {[%clk 0:02:28.6]} 14. Nb3
{[%clk 0:01:39.9]} 14... Rc8 {[%clk 0:02:27.1]} 15. Nc5 {[%clk 0:01:38.7]} 15...
Naxc5 {[%clk 0:02:23.2]} 16. bxc5 {[%clk 0:01:33.6]} 16... Be8 {[%clk
0:02:13.3]} 17. Qb2 {[%clk 0:01:25.6]} 17... a6 {[%clk 0:02:04.2]} 18. Rfc1
{[%clk 0:01:23.1]} 18... Bh5 {[%clk 0:02:00.1]} 19. Bxf6 {[%clk 0:01:21.6]}
19... Qxf6 {[%clk 0:02:01]} 20. Ne5 {[%clk 0:01:21.6]} 20... Rc7 {[%clk
0:01:57.4]} 21. a4 {[%clk 0:01:10.1]} 21... f4 {[%clk 0:01:54]} 22. g4 {[%clk
0:01:00.4]} 22... Be8 {[%clk 0:01:42.3]} 23. c6 {[%clk 0:00:56.5]} 23... Qh4
{[%clk 0:01:37.4]} 24. Bxe4 {[%clk 0:00:42.4]} 24... dxe4 {[%clk 0:01:34.7]} 25.
Qb3 {[%clk 0:00:42.2]} 25... Rf6 {[%clk 0:01:29.6]} 26. Rc3 {[%clk 0:00:14.5]}
26... e3 {[%clk 0:01:20.6]} 27. Rf1 {[%clk 0:00:07]} 27... Rh6 {[%clk
0:01:16.2]} 28. Nf3 {[%clk 0:00:04]} 28... Qxg4+ {[%clk 0:01:16.2]} 29. Kh1
{[%clk 0:00:04.4]} 29... Rg6 {[%clk 0:01:15.9]} 30. Rg1 {[%clk 0:00:04.1]} 30...
exf2 {[%clk 0:01:15.5]} 31. Rxg4 {[%clk 0:00:04.1]} 31... f1=Q+ {[%clk
0:01:14.3]} 32. Rg1 {[%clk 0:00:04.8]} 32... Rxg1+ {[%clk 0:01:09.3]} 33. Nxg1
{[%clk 0:00:04.2]} 33... Bxc6+ {[%clk 0:01:08.6]} 34. Rxc6 {[%clk 0:00:03.8]}
34... Rxc6 {[%clk 0:01:09.3]} 35. d5 {[%clk 0:00:04]} 35... Rc1 {[%clk 0:01:08]}
0-1

[Event "*** Titled Tuesday Blitz"]
[Site "Chess.com"]
[Date "2020.12.01"]
[Round "4"]
[White "Ariadna_Atreides"]
[Black "Colombiano07"]
[Result "0-1"]
[WhiteElo "2068"]
[BlackElo "2290"]
[TimeControl "180+1"]
[EndTime "10:37:48 PST"]
[Termination "Colombiano07 won by resignation"]

1. Nf3 {[%clk 0:03:00.4]} 1... d5 {[%clk 0:02:59.8]} 2. d4 {[%clk 0:02:59.5]}
2... Bf5 {[%clk 0:02:59.6]} 3. Bf4 {[%clk 0:02:56.8]} 3... e6 {[%clk 0:02:58.6]}
4. Nbd2 {[%clk 0:02:55.5]} 4... Bd6 {[%clk 0:02:57.9]} 5. e3 {[%clk 0:02:53.5]}
5... Nf6 {[%clk 0:02:57.6]} 6. Bd3 {[%clk 0:02:53]} 6... Bg4 {[%clk 0:02:56.4]}
7. h3 {[%clk 0:02:51]} 7... Bh5 {[%clk 0:02:56.5]} 8. g4 {[%clk 0:02:46.9]} 8...
Bg6 {[%clk 0:02:56.4]} 9. Ne5 {[%clk 0:02:47.3]} 9... Nbd7 {[%clk 0:02:45.1]}
10. h4 {[%clk 0:02:24.1]} 10... Bxd3 {[%clk 0:02:43]} 11. cxd3 {[%clk 0:02:23]}
11... Qe7 {[%clk 0:02:39.4]} 12. Qc2 {[%clk 0:02:21]} 12... c5 {[%clk
0:02:38.7]} 13. Nxd7 {[%clk 0:02:04.8]} 13... Nxd7 {[%clk 0:02:39.6]} 14. Bxd6
{[%clk 0:02:00.7]} 14... Qxd6 {[%clk 0:02:40.5]} 15. Nf3 {[%clk 0:01:55.3]}
15... O-O {[%clk 0:02:39.3]} 16. h5 {[%clk 0:01:25.7]} 16... Rac8 {[%clk
0:02:37]} 17. Qd2 {[%clk 0:01:20]} 17... e5 {[%clk 0:02:32]} 18. dxe5 {[%clk
0:01:14.2]} 18... Nxe5 {[%clk 0:02:32.9]} 19. Nxe5 {[%clk 0:01:14.1]} 19... Qxe5
{[%clk 0:02:33.8]} 20. f4 {[%clk 0:01:10.4]} 20... Qe6 {[%clk 0:02:31.6]} 21.
Kf2 {[%clk 0:01:10.2]} 21... Qxg4 {[%clk 0:02:24.5]} 22. Rag1 {[%clk 0:01:07.2]}
22... Qe6 {[%clk 0:02:19.7]} 23. Rg3 {[%clk 0:00:44.5]} 23... f5 {[%clk
0:02:05.9]} 24. Qa5 {[%clk 0:00:24.9]} 24... Qb6 {[%clk 0:02:01.3]} 25. Qc3
{[%clk 0:00:22.4]} 25... d4 {[%clk 0:01:52.7]} 26. Qc4+ {[%clk 0:00:20.7]} 26...
Kh8 {[%clk 0:01:50.1]} 27. b3 {[%clk 0:00:16.8]} 27... dxe3+ {[%clk 0:01:49.4]}
28. Kxe3 {[%clk 0:00:14]} 28... Qc6 {[%clk 0:01:45.3]} 29. Rhg1 {[%clk
0:00:12.1]} 29... Rc7 {[%clk 0:01:43.2]} 30. Qc3 {[%clk 0:00:11.2]} 30... Qf6
{[%clk 0:01:31.7]} 31. Qc4 {[%clk 0:00:06.9]} 31... Rd8 {[%clk 0:01:25.2]} 32.
Rg5 {[%clk 0:00:04.6]} 32... Re7+ {[%clk 0:01:19.6]} 33. Kf3 {[%clk 0:00:03.3]}
33... Rd4 {[%clk 0:01:06.2]} 34. Qc2 {[%clk 0:00:02.6]} 34... Qd6 {[%clk
0:00:56.1]} 35. Qd2 {[%clk 0:00:01.3]} 35... Rxd3+ {[%clk 0:00:55.4]} 0-1

[Event "*** Titled Tuesday Blitz"]
[Site "Chess.com"]
[Date "2020.12.01"]
[Round "4"]
[White "PawnEatingZombie"]
[Black "CalinGheorghiu"]
[Result "1-0"]
[WhiteElo "2180"]
[BlackElo "2380"]
[TimeControl "180+1"]
[EndTime "10:37:49 PST"]
[Termination "PawnEatingZombie won by resignation"]

1. d4 {[%clk 0:03:00.9]} 1... Nf6 {[%clk 0:02:59.4]} 2. c4 {[%clk 0:03:00.8]}
2... g6 {[%clk 0:03:00.3]} 3. Nc3 {[%clk 0:03:01]} 3... Bg7 {[%clk 0:03:01.2]}
4. e4 {[%clk 0:03:01.1]} 4... d6 {[%clk 0:03:01.5]} 5. Be2 {[%clk 0:03:01.1]}
5... O-O {[%clk 0:03:02.4]} 6. Be3 {[%clk 0:03:01.3]} 6... Nbd7 {[%clk
0:03:01.3]} 7. Nf3 {[%clk 0:03:00.5]} 7... e5 {[%clk 0:03:01.6]} 8. O-O {[%clk
0:03:00.6]} 8... a5 {[%clk 0:02:56.7]} 9. Qc2 {[%clk 0:02:42.4]} 9... Re8 {[%clk
0:02:55.4]} 10. d5 {[%clk 0:02:41.2]} 10... Nc5 {[%clk 0:02:53.8]} 11. Nd2
{[%clk 0:02:38.1]} 11... Ng4 {[%clk 0:02:51.1]} 12. Bxg4 {[%clk 0:02:35.7]}
12... Bxg4 {[%clk 0:02:51.4]} 13. a3 {[%clk 0:02:34.1]} 13... Bd7 {[%clk
0:02:40.3]} 14. b4 {[%clk 0:02:27.1]} 14... axb4 {[%clk 0:02:41.2]} 15. axb4
{[%clk 0:02:26.9]} 15... Rxa1 {[%clk 0:02:41.2]} 16. Rxa1 {[%clk 0:02:26.9]}
16... Na6 {[%clk 0:02:42.1]} 17. Qb3 {[%clk 0:02:16.3]} 17... f5 {[%clk
0:02:42]} 18. f3 {[%clk 0:02:16.3]} 18... g5 {[%clk 0:02:36.6]} 19. c5 {[%clk
0:02:12.1]} 19... g4 {[%clk 0:02:29.8]} 20. c6 {[%clk 0:02:03.2]} 20... Bc8
{[%clk 0:02:23.9]} 21. b5 {[%clk 0:02:02.3]} 21... Nc5 {[%clk 0:02:20.9]} 22.
Bxc5 {[%clk 0:02:01.1]} 22... dxc5 {[%clk 0:02:21.8]} 23. d6+ {[%clk 0:01:33.1]}
23... Be6 {[%clk 0:02:21]} 24. Nd5 {[%clk 0:01:33.7]} 24... bxc6 {[%clk
0:02:03.9]} 25. bxc6 {[%clk 0:01:31.8]} 25... Qxd6 {[%clk 0:02:01.5]} 26. Ra6
{[%clk 0:01:26.1]} 26... gxf3 {[%clk 0:01:57.6]} 27. Nc4 {[%clk 0:01:07.5]}
27... Bxd5 {[%clk 0:01:54.2]} 28. Nxd6 {[%clk 0:00:59.6]} 28... Bxb3 {[%clk
0:01:54.3]} 29. Nxe8 {[%clk 0:01:00.1]} 29... Bh6 {[%clk 0:01:42.9]} 30. gxf3
{[%clk 0:00:55.3]} 30... Be3+ {[%clk 0:01:41.3]} 31. Kg2 {[%clk 0:00:54.4]}
31... c4 {[%clk 0:01:39.4]} 32. Nxc7 {[%clk 0:00:52.4]} 32... c3 {[%clk
0:01:39.5]} 33. Ra1 {[%clk 0:00:21]} 33... c2 {[%clk 0:01:37.5]} 34. Nd5 {[%clk
0:00:21.3]} 34... fxe4 {[%clk 0:01:04.4]} 35. fxe4 {[%clk 0:00:20.3]} 1-0

[Event "*** Titled Tuesday Blitz"]
[Site "Chess.com"]
[Date "2020.12.01"]
[Round "4"]
[White "Blitzking642"]
[Black "onetowin"]
[Result "1-0"]
[WhiteElo "2257"]
[BlackElo "2002"]
[TimeControl "180+1"]
[EndTime "10:37:49 PST"]
[Termination "Blitzking642 won by resignation"]

1. e4 {[%clk 0:03:00.9]} 1... c5 {[%clk 0:02:59]} 2. Nc3 {[%clk 0:03:00.2]} 2...
e6 {[%clk 0:02:58.9]} 3. g3 {[%clk 0:02:59.9]} 3... Nc6 {[%clk 0:02:58.9]} 4.
Bg2 {[%clk 0:03:00.1]} 4... Nf6 {[%clk 0:02:57]} 5. d3 {[%clk 0:03:00]} 5... d5
{[%clk 0:02:56.9]} 6. exd5 {[%clk 0:02:56]} 6... exd5 {[%clk 0:02:56.2]} 7. Nge2
{[%clk 0:02:56.4]} 7... Be7 {[%clk 0:02:56.2]} 8. O-O {[%clk 0:02:56.1]} 8... d4
{[%clk 0:02:51.1]} 9. Ne4 {[%clk 0:02:55.1]} 9... O-O {[%clk 0:02:52]} 10. a3
{[%clk 0:02:30.8]} 10... Nd5 {[%clk 0:02:51.2]} 11. c4 {[%clk 0:02:25.3]} 11...
dxc3 {[%clk 0:02:45.6]} 12. N4xc3 {[%clk 0:02:24.2]} 12... Nxc3 {[%clk
0:02:44.7]} 13. bxc3 {[%clk 0:02:23.5]} 13... Qc7 {[%clk 0:02:37.7]} 14. Bf4
{[%clk 0:02:22.2]} 14... Bd6 {[%clk 0:02:37.8]} 15. d4 {[%clk 0:02:21.6]} 15...
Bg4 {[%clk 0:02:26.4]} 16. f3 {[%clk 0:02:21.2]} 16... Bf5 {[%clk 0:02:22.7]}
17. dxc5 {[%clk 0:02:20.5]} 17... Bxc5+ {[%clk 0:02:21.5]} 18. Kh1 {[%clk
0:02:18.4]} 18... Qa5 {[%clk 0:02:18.3]} 19. Nd4 {[%clk 0:02:16.5]} 19... Nxd4
{[%clk 0:02:04.9]} 20. cxd4 {[%clk 0:02:14.4]} 20... Rfd8 {[%clk 0:01:57.3]} 21.
Bd2 {[%clk 0:02:08]} 21... Qb5 {[%clk 0:01:09.9]} 22. dxc5 {[%clk 0:02:07.5]}
22... Qxc5 {[%clk 0:01:10.8]} 23. Qc1 {[%clk 0:02:05.7]} 23... Qd5 {[%clk
0:01:07.8]} 24. Bc3 {[%clk 0:01:59.5]} 24... Rac8 {[%clk 0:01:06.8]} 25. Qb2
{[%clk 0:01:59.7]} 25... f6 {[%clk 0:00:50.5]} 26. Rac1 {[%clk 0:02:00.1]} 26...
Bd3 {[%clk 0:00:41]} 27. Rfd1 {[%clk 0:01:57]} 27... Qf5 {[%clk 0:00:34.1]} 28.
f4 {[%clk 0:01:54.2]} 28... Be4 {[%clk 0:00:32.1]} 29. Bb4 {[%clk 0:01:23.5]}
29... h6 {[%clk 0:00:27]} 30. Bxe4 {[%clk 0:01:20.7]} 30... Qxe4+ {[%clk
0:00:25.9]} 31. Qg2 {[%clk 0:01:21.3]} 31... Qf5 {[%clk 0:00:23.3]} 32. Rxc8
{[%clk 0:01:12.1]} 32... Rxc8 {[%clk 0:00:20.9]} 33. Qxb7 {[%clk 0:01:11.4]}
33... Qg4 {[%clk 0:00:18.6]} 34. Re1 {[%clk 0:01:05.6]} 34... Rc2 {[%clk
0:00:16]} 35. Re8+ {[%clk 0:00:57.5]} 35... Kh7 {[%clk 0:00:15.1]} 36. Qe4+
{[%clk 0:00:58]} 36... f5 {[%clk 0:00:14.9]} 37. Qxc2 {[%clk 0:00:54.9]} 37...
Qf3+ {[%clk 0:00:14.5]} 38. Kg1 {[%clk 0:00:53.8]} 38... Qh5 {[%clk 0:00:13.9]}
39. Re5 {[%clk 0:00:51.1]} 1-0

[Event "*** Titled Tuesday Blitz"]
[Site "Chess.com"]
[Date "2020.12.01"]
[Round "4"]
[White "Synctel"]
[Black "politeplayer"]
[Result "0-1"]
[WhiteElo "1996"]
[BlackElo "2251"]
[TimeControl "180+1"]
[EndTime "10:37:49 PST"]
[Termination "politeplayer won on time"]

1. e4 {[%clk 0:03:00.9]} 1... c5 {[%clk 0:02:46.6]} 2. Ne2 {[%clk 0:02:48.1]}
2... Nc6 {[%clk 0:02:44.6]} 3. d4 {[%clk 0:02:39.5]} 3... cxd4 {[%clk
0:02:44.5]} 4. Nxd4 {[%clk 0:02:40.4]} 4... g6 {[%clk 0:02:44.1]} 5. c4 {[%clk
0:02:35.3]} 5... Bg7 {[%clk 0:02:44.1]} 6. Be3 {[%clk 0:02:35.9]} 6... Nf6
{[%clk 0:02:42.8]} 7. Nc3 {[%clk 0:02:36.3]} 7... O-O {[%clk 0:02:42.4]} 8. Be2
{[%clk 0:02:36.8]} 8... d6 {[%clk 0:02:42.1]} 9. O-O {[%clk 0:02:30.4]} 9... Bd7
{[%clk 0:02:42.1]} 10. f3 {[%clk 0:02:25.6]} 10... Nxd4 {[%clk 0:02:41.5]} 11.
Bxd4 {[%clk 0:02:25]} 11... a5 {[%clk 0:02:41.9]} 12. Qd2 {[%clk 0:02:20.8]}
12... Bc6 {[%clk 0:02:40.9]} 13. Rfd1 {[%clk 0:01:57.8]} 13... Nd7 {[%clk
0:02:35.4]} 14. Bxg7 {[%clk 0:01:50]} 14... Kxg7 {[%clk 0:02:35.6]} 15. Nd5
{[%clk 0:01:44.3]} 15... Bxd5 {[%clk 0:02:25.4]} 16. Qxd5 {[%clk 0:01:42.1]}
16... Qb6+ {[%clk 0:02:22.5]} 17. Qd4+ {[%clk 0:01:38.9]} 17... Qxd4+ {[%clk
0:02:22.2]} 18. Rxd4 {[%clk 0:01:39.4]} 18... Rfc8 {[%clk 0:02:18.1]} 19. b3
{[%clk 0:01:25.5]} 19... g5 {[%clk 0:02:07.1]} 20. g3 {[%clk 0:01:19]} 20... a4
{[%clk 0:02:01.4]} 21. b4 {[%clk 0:01:03.1]} 21... a3 {[%clk 0:02:01.5]} 22. c5
{[%clk 0:00:44.9]} 22... Ne5 {[%clk 0:01:33.4]} 23. cxd6 {[%clk 0:00:42.5]}
23... exd6 {[%clk 0:01:33.9]} 24. Rxd6 {[%clk 0:00:38.7]} 24... Rc2 {[%clk
0:01:33.4]} 25. Kf1 {[%clk 0:00:34.1]} 25... Rac8 {[%clk 0:01:32.9]} 26. f4
{[%clk 0:00:21.4]} 26... gxf4 {[%clk 0:01:26.6]} 27. gxf4 {[%clk 0:00:22.3]}
27... Ng6 {[%clk 0:01:19.2]} 28. f5 {[%clk 0:00:18.5]} 28... Nf4 {[%clk
0:01:15.8]} 29. Bg4 {[%clk 0:00:09.9]} 29... Rxh2 {[%clk 0:01:09.6]} 30. f6+
{[%clk 0:00:09.1]} 30... Kh6 {[%clk 0:01:03.5]} 31. Bxc8 {[%clk 0:00:10]} 31...
Rh1+ {[%clk 0:01:01.7]} 32. Kf2 {[%clk 0:00:10.6]} 32... Rxa1 {[%clk 0:01:01.6]}
33. Bxb7 {[%clk 0:00:05.2]} 33... Rxa2+ {[%clk 0:01:00.1]} 34. Kg3 {[%clk
0:00:05.4]} 34... Nh5+ {[%clk 0:00:56.4]} 35. Kf3 {[%clk 0:00:02.5]} 35... Ra1
{[%clk 0:00:55.1]} 0-1

[Event "*** Titled Tuesday Blitz"]
[Site "Chess.com"]
[Date "2020.12.01"]
[Round "4"]
[White "Tssunami"]
[Black "MarcoRiehle"]
[Result "0-1"]
[WhiteElo "2415"]
[BlackElo "2677"]
[TimeControl "180+1"]
[EndTime "10:37:53 PST"]
[Termination "MarcoRiehle won by resignation"]

1. Nf3 {[%clk 0:03:00.2]} 1... d5 {[%clk 0:02:57.5]} 2. d4 {[%clk 0:02:57.3]}
2... e6 {[%clk 0:02:49]} 3. Bf4 {[%clk 0:02:56.5]} 3... Bd6 {[%clk 0:02:48.6]}
4. Bg3 {[%clk 0:02:54.8]} 4... c5 {[%clk 0:02:48.2]} 5. c3 {[%clk 0:02:54]} 5...
Nf6 {[%clk 0:02:48.8]} 6. e3 {[%clk 0:02:53.4]} 6... O-O {[%clk 0:02:49.3]} 7.
Nbd2 {[%clk 0:02:53.2]} 7... Nc6 {[%clk 0:02:49.5]} 8. Bd3 {[%clk 0:02:51.5]}
8... Re8 {[%clk 0:02:48.2]} 9. dxc5 {[%clk 0:02:46.2]} 9... Bxc5 {[%clk
0:02:47.6]} 10. O-O {[%clk 0:02:46.5]} 10... e5 {[%clk 0:02:43.8]} 11. e4 {[%clk
0:02:45.3]} 11... Bg4 {[%clk 0:02:40.5]} 12. b4 {[%clk 0:02:31.1]} 12... Bb6
{[%clk 0:02:38.1]} 13. Qc2 {[%clk 0:02:20.3]} 13... d4 {[%clk 0:02:25.4]} 14. b5
{[%clk 0:02:16.3]} 14... dxc3 {[%clk 0:02:11.7]} 15. bxc6 {[%clk 0:02:04.9]}
15... cxd2 {[%clk 0:02:11.4]} 16. cxb7 {[%clk 0:02:00.4]} 16... Rb8 {[%clk
0:02:11.1]} 17. Nxd2 {[%clk 0:01:48.2]} 17... Rxb7 {[%clk 0:02:08.9]} 18. Nc4
{[%clk 0:01:39.2]} 18... Bd4 {[%clk 0:02:07.9]} 19. Rab1 {[%clk 0:01:37.9]}
19... Rc7 {[%clk 0:02:03.6]} 20. Qb3 {[%clk 0:01:32.1]} 20... Be6 {[%clk
0:01:58.8]} 21. Qa4 {[%clk 0:01:30.2]} 21... Nxe4 {[%clk 0:01:53.4]} 22. Bxe5
{[%clk 0:00:55.5]} 22... Bxe5 {[%clk 0:01:44.1]} 23. Nxe5 {[%clk 0:00:55.3]}
23... Nc3 {[%clk 0:01:39.6]} 24. Qc2 {[%clk 0:00:35.2]} 24... Nxb1 {[%clk
0:01:34.8]} 25. Bxh7+ {[%clk 0:00:35]} 25... Kh8 {[%clk 0:01:35.2]} 26. Qxb1
{[%clk 0:00:32.2]} 26... Bxa2 {[%clk 0:01:25.9]} 27. Qf5 {[%clk 0:00:29.6]}
27... Qf6 {[%clk 0:01:05.4]} 28. Qh3 {[%clk 0:00:20]} 28... Qh6 {[%clk 0:01:05]}
29. Qa3 {[%clk 0:00:09.6]} 29... Qxh7 {[%clk 0:00:59.2]} 30. Qxa2 {[%clk
0:00:08.4]} 30... Rxe5 {[%clk 0:00:59.1]} 31. Qa3 {[%clk 0:00:08.2]} 31... Rec5
{[%clk 0:00:55.7]} 32. Qf3 {[%clk 0:00:07]} 32... Qg6 {[%clk 0:00:53.8]} 33. h3
{[%clk 0:00:07.1]} 33... Rc1 {[%clk 0:00:52.3]} 34. g3 {[%clk 0:00:07.5]} 34...
Rxf1+ {[%clk 0:00:51.2]} 35. Kxf1 {[%clk 0:00:08.4]} 35... Rc1+ {[%clk
0:00:51.5]} 36. Kg2 {[%clk 0:00:07.8]} 36... Qc6 {[%clk 0:00:52]} 0-1